fUSD/lending_fUSD_20251117
["ID","MTS","AMOUNT","RATE_DAILY","PERIOD"]
[394203271,1763377832687,-462.57515969,0.00024873,2]
[394203273,1763377832696,-503.37977993,0.00024873,2]
[394203275,1763377832705,-323.62219254,0.00024873,2]
[394203277,1763377832714,-500.0,0.00024873,2]
[394203279,1763377832723,-500.0,0.00024873,2]
[394203280,1763377832733,-502.08059121,0.00024873,2]
[394203283,1763377832743,-62049.880219,0.0002489,3]
[394203285,1763377832752,-151.0,0.000249,7]
[394203287,1763377832762,-151.0,0.000249,7]
[394203289,1763377832771,-151.0,0.000249,7]
[394203291,1763377832782,-151.0,0.000249,7]
[394203293,1763377832791,-151.0,0.000249,7]
[394203295,1763377832800,-153.450386,0.000249,7]
[394203297,1763377832809,-151.0,0.000249,7]
[394203299,1763377832818,-151.0,0.000249,7]
[394203301,1763377832827,-151.0,0.000249,7]
[394203303,1763377832837,-151.0,0.000249,7]
[394203305,1763377832846,-151.0,0.000249,7]
[394203307,1763377832855,-151.0,0.000249,7]
[394203309,1763377832864,-151.0,0.000249,7]
[394203311,1763377832873,-199.150033,0.000249,7]
[394203313,1763377832882,-209.1782,0.000249,7]
[394203315,1763377832891,-161.866969,0.000249,7]
[394203317,1763377832900,-151.0,0.000249,7]
[394203319,1763377832911,-151.0,0.000249,7]
[394203321,1763377832920,-151.0,0.000249,7]
[394203323,1763377832929,-151.0,0.000249,7]
[394203325,1763377832939,-151.0,0.000249,7]
[394203327,1763377832949,-151.0,0.000249,7]
[394203329,1763377832958,-171.459858,0.000249,7]
[394203331,1763377832967,-171.459858,0.000249,7]
[394203332,1763377832975,-171.459858,0.000249,7]
[394203333,1763377832985,-171.459858,0.000249,7]
[394203334,1763377832994,-151.0,0.000249,7]
[394203335,1763377833003,-151.0,0.000249,7]
[394203336,1763377833013,-151.0,0.000249,7]
[394203337,1763377833022,-151.0,0.000249,7]
[394203338,1763377833033,-151.0,0.000249,7]
[394203339,1763377833042,-151.0,0.000249,7]
[394203340,1763377833051,-151.0,0.000249,7]
[394203341,1763377833060,-151.0,0.000249,7]
[394203342,1763377833070,-151.0,0.000249,7]
[394203343,1763377833079,-151.0,0.000249,7]
[394203344,1763377833088,-151.0,0.000249,7]
[394203345,1763377833097,-151.0,0.000249,7]
[394203346,1763377833106,-151.0,0.000249,7]
[394203347,1763377833116,-151.0,0.000249,7]
[394203348,1763377833125,-151.0,0.000249,7]
[394203349,1763377833134,-151.0,0.000249,7]
[394203350,1763377833143,-151.0,0.000249,7]
[394203351,1763377833152,-151.0,0.000249,7]
[394203352,1763377833161,-151.0,0.000249,7]
[394203353,1763377833170,-293.636242,0.000249,7]
[394203354,1763377833179,-151.0,0.000249,7]
[394203355,1763377833189,-293.636242,0.000249,7]
[394203356,1763377833198,-293.636242,0.000249,7]
[394203357,1763377833207,-187.782979,0.000249,7]
[394203358,1763377833217,-293.636242,0.000249,7]
[394203359,1763377833226,-187.782979,0.000249,7]
[394203360,1763377833236,-187.782979,0.000249,7]
[394203361,1763377833245,-151.0,0.000249,7]
[394203362,1763377833254,-187.782979,0.000249,7]
[394203363,1763377833263,-151.0,0.000249,7]
[394203364,1763377833273,-151.0,0.000249,7]
[394203365,1763377833285,-151.0,0.000249,7]
[394203366,1763377833295,-151.0,0.000249,7]
[394203367,1763377833304,-153.876992,0.000249,7]
[394203368,1763377833312,-151.0,0.000249,7]
[394203369,1763377833322,-151.0,0.000249,7]
[394203370,1763377833331,-151.0,0.000249,7]
[394203371,1763377833343,-151.0,0.000249,7]
[394203372,1763377833352,-151.0,0.000249,7]
[394203373,1763377833361,-212.84,0.000249,2]
[394203374,1763377833371,-151.0,0.000249,7]
[394203375,1763377833380,-151.0,0.000249,7]
[394203376,1763377833390,-151.0,0.000249,7]
[394203377,1763377833400,-151.0,0.000249,7]
[394203378,1763377833409,-151.0,0.000249,7]
[394203379,1763377833420,-151.0,0.000249,7]
[394203380,1763377833429,-151.0,0.000249,7]
[394203381,1763377833438,-151.0,0.000249,7]
[394203382,1763377833447,-151.0,0.000249,7]
[394203383,1763377833456,-151.0,0.000249,7]
[394203384,1763377833465,-151.0,0.000249,7]
[394203385,1763377833474,-151.0,0.000249,7]
[394203386,1763377833484,-151.0,0.000249,7]
[394203387,1763377833493,-151.0,0.000249,7]
[394203388,1763377833502,-215.9294,0.000249,7]
[394203389,1763377833511,-215.9294,0.000249,7]
[394203390,1763377833520,-151.0,0.000249,7]
[394203391,1763377833531,-215.9294,0.000249,7]
[394203392,1763377833540,-215.9294,0.000249,7]
[394203393,1763377833550,-151.0,0.000249,7]
[394203394,1763377833559,-151.0,0.000249,7]
[394203395,1763377833568,-168.0,0.00025073,2]
[394203396,1763377833577,-212.84,0.00025174,2]
[394203397,1763377833587,-500.0,0.00025321,2]
[394203398,1763377833597,-168.0,0.00025569,2]
[394203399,1763377833606,-1000.0,0.00025577,2]
[394203400,1763377833615,-4187.72073445,0.00026139,2]
[394203401,1763377833625,-3473.38372707,0.00026139,2]
[394203402,1763377833635,-1000.0,0.00026376,2]
[394203403,1763377833644,-9037.04851519,0.0002644,2]
[394203404,1763377833654,-1000.0,0.00026692,2]
[394203405,1763377833663,-154.32,0.0002686,7]
[394203406,1763377833673,-610.0,0.00026874,2]
[394203407,1763377833682,-6441.17735099,0.00027624,3]
[394203408,1763377833695,-11452.55184871,0.00027624,3]
[394203409,1763377833706,-586.43232815,0.00027624,3]
[394203410,1763377833802,-1246.01731037,0.00027624,3]
[394203411,1763377833813,-803.67,0.00027624,3]
[394203423,1763377837875,-735.85953622,0.00027624,3]
[394203425,1763377837887,-3869.63070379,0.00027624,3]
[394203430,1763377837930,-5889.60103127,0.00027624,3]
[394203431,1763377837940,-4187.72073445,0.00027634,2]
[394203432,1763377837949,-385.36424014,0.00027634,2]
[394203433,1763377837961,-3088.01948693,0.00027634,2]
[394203434,1763377837970,-997.349,0.00027719,2]
[394203435,1763377837979,-1181.315,0.00027719,2]
[394203436,1763377837989,-204339.0,0.000287,2]
[394203437,1763377837999,-157.749136,0.00029097,7]
[394203438,1763377838009,-412.8794536,0.00029099,2]
[394203439,1763377838018,-4187.72073445,0.00029129,2]
[394203440,1763377838029,-3473.38372707,0.00029129,2]
[394203441,1763377838039,-154.32,0.00029291,30]
[394203442,1763377838048,-500.0,0.00029373,5]
[394203443,1763377838058,-500.0,0.00029373,5]
[394203444,1763377838067,-500.0,0.00029373,5]
[394203445,1763377838077,-500.0,0.00029373,5]
[394203447,1763377838086,-490.58197567,0.00029373,5]
[394203448,1763377838095,-500.0,0.00029373,5]
[394203449,1763377838104,-157.749136,0.00029387,7]
[394203450,1763377838114,-93074.8203286,0.0002939,3]
[394203451,1763377838123,-151.0,0.000294,7]
[394203452,1763377838132,-151.0,0.000294,7]
[394203454,1763377838141,-151.0,0.000294,7]
[394203456,1763377838150,-151.0,0.000294,7]
[394203457,1763377838160,-282.064688,0.000294,7]
[394203458,1763377838169,-192.800036,0.000294,7]
[394203459,1763377838178,-151.0,0.000294,7]
[394203460,1763377838188,-151.0,0.000294,7]
[394203462,1763377838197,-151.0,0.000294,7]
[394203464,1763377838206,-151.0,0.000294,7]
[394203466,1763377838216,-250.338684,0.000294,7]
[394203468,1763377838225,-151.0,0.000294,7]
[394203470,1763377838235,-151.0,0.000294,7]
[394203472,1763377838244,-164.271193,0.000294,7]
[394203474,1763377838254,-215.9294,0.000294,7]
[394203476,1763377838263,-215.9294,0.000294,7]
[394203478,1763377838272,-151.0,0.000294,7]
[394203480,1763377838282,-215.9294,0.000294,7]
[394203483,1763377838292,-215.9294,0.000294,7]
[394203484,1763377838302,-151.0,0.000294,7]
[394203487,1763377838311,-150.0,0.000295,14]
[394203489,1763377838320,-5518.0,0.000295,3]
[394203490,1763377838329,-151.0,0.000296,7]
[394203493,1763377838338,-151.0,0.000296,7]
[394203494,1763377838348,-151.0,0.000296,7]
[394203496,1763377838360,-151.0,0.000296,7]
[394203499,1763377838370,-1000.0,0.00029673,2]
[394203500,1763377838379,-31024.9401095,0.00029763,3]
[394203503,1763377838389,-501.89985853,0.00029773,5]
[394203505,1763377838399,-151.0,0.000298,7]
[394203507,1763377838408,-151.0,0.000298,7]
[394203509,1763377838418,-151.0,0.000298,7]
[394203510,1763377838427,-151.0,0.000298,7]
[394203513,1763377838437,-151.0,0.000298,7]
[394203515,1763377838447,-151.0,0.000298,7]
[394203516,1763377838456,-155.80203,0.000298,7]
[394203518,1763377838466,-151.0,0.000298,7]
[394203521,1763377838477,-293.636242,0.000298,7]
[394203523,1763377838488,-151.0,0.000298,7]
[394203525,1763377838497,-293.636242,0.000298,7]
[394203527,1763377838507,-293.636242,0.000298,7]
[394203528,1763377838517,-187.782979,0.000298,7]
[394203530,1763377838526,-293.636242,0.000298,7]
[394203532,1763377838538,-187.782979,0.000298,7]
[394203534,1763377838548,-187.782979,0.000298,7]
[394203536,1763377838557,-187.782979,0.000298,7]
[394203538,1763377838566,-153.729362,0.00030065,7]
[394203541,1763377838577,-151.0,0.00030065,7]
[394203543,1763377838586,-151.0,0.00030065,7]
[394203545,1763377838595,-151.0,0.00030065,7]
[394203547,1763377838604,-151.0,0.00030065,7]
[394203549,1763377838613,-151.0,0.00030065,7]
[394203551,1763377838622,-151.0,0.00030065,7]
[394203552,1763377838632,-151.0,0.00030065,7]
[394203554,1763377838641,-151.0,0.00030065,7]
[394203557,1763377838651,-151.0,0.00030065,7]
[394203559,1763377838660,-151.0,0.00030065,7]
[394203561,1763377838670,-151.0,0.00030065,7]
[394203563,1763377838680,-151.0,0.00030065,7]
[394203564,1763377838690,-151.0,0.00030065,7]
[394203567,1763377838699,-151.0,0.00030065,7]
[394203568,1763377838709,-151.0,0.00030065,7]
[394203571,1763377838718,-151.0,0.00030065,7]
[394203572,1763377838728,-151.0,0.00030065,7]
[394203574,1763377838737,-151.0,0.00030065,7]
[394203576,1763377838747,-151.0,0.00030065,7]
[394203579,1763377838758,-151.0,0.00030065,7]
[394203581,1763377838767,-151.0,0.00030065,7]
[394203583,1763377838776,-31024.9401095,0.00030066,3]
[394203585,1763377838788,-506.46698024,0.00030073,5]
[394203586,1763377838798,-501.0314421,0.00030073,5]
[394203589,1763377838808,-500.0,0.00030073,5]
[394203590,1763377838818,-151.0,0.00030076,7]
[394203592,1763377838827,-151.0,0.00030076,7]
[394203594,1763377838837,-151.0,0.000301,7]
[394203596,1763377838846,-151.0,0.000301,7]
[394203598,1763377838855,-151.0,0.000301,7]
[394203600,1763377838864,-151.0,0.000301,7]
[394203603,1763377838875,-188.69218,0.000301,7]
[394203604,1763377838884,-171.459858,0.000301,7]
[394203606,1763377838895,-151.0,0.000301,7]
[394203608,1763377838904,-151.0,0.000301,7]
[394203610,1763377838914,-151.0,0.000301,7]
[394203612,1763377838923,-151.0,0.000301,7]
[394203614,1763377838933,-184.715224,0.000301,7]
[394203616,1763377838943,-151.0,0.000301,7]
[394203618,1763377838952,-285.174039,0.000301,7]
[394203620,1763377838962,-205.830157,0.000301,7]
[394203622,1763377838972,-500.0,0.00030136,2]
[394203624,1763377838982,-500.0,0.00030136,2]
[394203626,1763377838991,-500.0,0.00030136,2]
[394203628,1763377839000,-500.0,0.00030136,2]
[394203630,1763377839010,-151.0,0.000303,31]
[394203632,1763377839019,-255.222647,0.000303,31]
[394203634,1763377839031,-269.222207,0.000303,31]
[394203636,1763377839040,-151.823225,0.000303,31]
[394203638,1763377839049,-158.067616,0.000303,31]
[394203640,1763377839059,-151.0,0.000303,31]
[394203642,1763377839068,-151.0,0.000303,31]
[394203644,1763377839078,-5518.0,0.000303,5]
[394203646,1763377839088,-500.0,0.0003041,2]
[394203648,1763377839097,-500.0,0.0003041,2]
[394203650,1763377839106,-500.0,0.0003041,2]
[394203652,1763377839116,-151.99175,0.0003047,31]
[394203654,1763377839126,-151.0,0.0003047,31]
[394203656,1763377839134,-151.0,0.0003047,31]
[394203658,1763377839144,-151.0,0.0003047,31]
[394203660,1763377839154,-151.0,0.0003047,31]
[394203662,1763377839163,-151.0,0.0003047,31]
[394203664,1763377839173,-152.341092,0.0003047,31]
[394203666,1763377839182,-151.0,0.0003047,31]
[394203668,1763377839191,-151.941783,0.0003047,31]
[394203670,1763377839201,-151.0,0.0003047,31]
[394203672,1763377839211,-151.0,0.0003047,31]
[394203674,1763377839220,-151.0,0.0003047,31]
[394203676,1763377839229,-151.0,0.0003047,31]
[394203678,1763377839239,-151.0,0.0003047,31]
[394203680,1763377839248,-151.0,0.0003047,31]
[394203682,1763377839257,-151.0,0.0003047,31]
[394203684,1763377839266,-151.0,0.0003047,31]
[394203686,1763377839276,-151.0,0.0003047,31]
[394203688,1763377839288,-151.0,0.0003047,31]
[394203690,1763377839297,-284.423804,0.0003047,31]
[394203692,1763377839306,-151.0,0.0003047,31]
[394203693,1763377839315,-31024.9401095,0.0003047,3]
[394203694,1763377839324,-157.749136,0.00030477,7]
[394203695,1763377839333,-31024.9401095,0.0003048,3]
[394203696,1763377839343,-151.0,0.0003049,31]
[394203697,1763377839355,-151.0,0.0003049,31]
[394203698,1763377839364,-151.0,0.0003049,31]
[394203699,1763377839374,-151.0,0.0003049,31]
[394203701,1763377839383,-151.0,0.0003049,31]
[394203703,1763377839393,-171.459858,0.0003049,31]
[394203705,1763377839402,-151.0,0.0003049,28]
[394203707,1763377839411,-151.0,0.0003049,31]
[394203709,1763377839420,-151.0,0.0003049,28]
[394203711,1763377839432,-151.0,0.0003049,28]
[394203713,1763377839440,-151.0,0.0003049,31]
[394203715,1763377839449,-151.0,0.0003049,31]
[394203717,1763377839459,-151.0,0.0003049,31]
[394203719,1763377839468,-281.008224,0.0003049,31]
[394203720,1763377839477,-151.0,0.0003049,31]
[394203723,1763377839487,-151.0,0.0003049,31]
[394203724,1763377839500,-293.636242,0.0003049,31]
[394203726,1763377839509,-151.0,0.0003049,31]
[394203728,1763377839519,-293.636242,0.0003049,31]
[394203730,1763377839527,-293.636242,0.0003049,31]
[394203732,1763377839538,-187.782979,0.0003049,31]
[394203734,1763377839547,-293.636242,0.0003049,31]
[394203736,1763377839556,-187.782979,0.0003049,31]
[394203738,1763377839566,-187.782979,0.0003049,31]
[394203740,1763377839575,-187.782979,0.0003049,31]
[394203742,1763377839584,-151.0,0.0003049,31]
[394203744,1763377839595,-151.0,0.0003049,31]
[394203746,1763377839605,-151.0,0.0003049,31]
[394203748,1763377839614,-151.0,0.0003049,31]
[394203750,1763377839623,-151.0,0.0003049,31]
[394203752,1763377839633,-151.0,0.0003049,31]
[394203754,1763377839642,-151.0,0.0003049,31]
[394203756,1763377839651,-151.0,0.0003049,31]
[394203758,1763377839661,-151.0,0.0003049,31]
[394203760,1763377839670,-151.0,0.0003049,30]
[394203762,1763377839680,-151.0,0.0003049,31]
[394203765,1763377839690,-296.946848,0.0003049,31]
[394203766,1763377839699,-215.9294,0.0003049,31]
[394203769,1763377839709,-215.9294,0.0003049,31]
[394203771,1763377839718,-215.9294,0.0003049,31]
[394203772,1763377839727,-215.9294,0.0003049,31]
[394203774,1763377839736,-170.508841,0.0003049,31]
[394203776,1763377839746,-151.0,0.000305,31]
[394203778,1763377839755,-177.446999,0.000305,31]
[394203780,1763377839764,-151.0,0.000305,15]
[394203782,1763377839773,-151.0,0.000305,31]
[394203784,1763377839783,-151.0,0.000305,31]
[394203786,1763377839791,-4187.72073445,0.00030624,2]
[394203788,1763377839801,-3473.38372707,0.00030624,2]
[394203790,1763377839810,-501.3549135,0.00030673,5]
[394203792,1763377839820,-500.0,0.00030673,5]
[394203794,1763377839830,-500.0,0.00030673,5]
[394203796,1763377839839,-500.0,0.00030673,5]
[394203798,1763377839848,-501.8690547,0.00030673,5]
[394203800,1763377839857,-500.46051516,0.00030673,5]
[394203802,1763377839867,-500.0,0.00030673,5]
[394203804,1763377839876,-500.0,0.00030673,5]
[394203806,1763377839885,-501.74831754,0.00030673,5]
[394203809,1763377839894,-500.0,0.00030673,5]
[394203811,1763377839903,-501.0431648,0.00030673,5]
[394203813,1763377839912,-501.42024284,0.00030673,5]
[394203815,1763377839922,-31024.9401095,0.00030679,3]
[394203817,1763377839931,-500.0,0.00030684,2]
[394203819,1763377839940,-500.0,0.00030684,2]
[394203820,1763377839949,-500.0,0.00030684,2]
[394203822,1763377839958,-151.0,0.000307,31]
[394203824,1763377839968,-151.0,0.000307,31]
[394203826,1763377839977,-151.0,0.000307,31]
[394203828,1763377839986,-151.0,0.000307,31]
[394203830,1763377839996,-500.0,0.00030958,2]
[394203832,1763377840005,-500.0,0.00030958,2]
[394203834,1763377840015,-500.0,0.00030958,2]
[394203836,1763377840024,-163.65657458,0.00030998,30]
[394203838,1763377840032,-151.0,0.00031,31]
[394203840,1763377840042,-151.0,0.00031,31]
[394203842,1763377840051,-151.0,0.00031,31]
[394203844,1763377840060,-151.0,0.00031,31]
[394203846,1763377840069,-151.0,0.000312,31]
[394203848,1763377840078,-151.0,0.000312,31]
[394203850,1763377840087,-151.0,0.000312,31]
[394203852,1763377840096,-500.0,0.00031232,2]
[394203854,1763377840105,-500.0,0.00031232,2]
[394203856,1763377840115,-500.0,0.00031232,2]
[394203858,1763377840124,-500.0,0.0003145,5]
[394203860,1763377840133,-501.01141393,0.0003145,5]
[394203862,1763377840142,-500.0,0.00031506,2]
[394203864,1763377840152,-500.0,0.00031506,2]
[394203866,1763377840160,-220.20733954,0.00031506,2]
[394203868,1763377840171,-154.32,0.00031721,30]
[394203870,1763377840181,-200.9225493,0.0003178,2]
[394203872,1763377840190,-500.0,0.0003178,2]
[394203874,1763377840199,-150.99,0.00031795,120]
[394203876,1763377840208,-500.0,0.00032054,2]
[394203878,1763377840217,-4187.72073445,0.0003212,2]
[394203880,1763377840226,-3473.38372707,0.0003212,2]
[394203882,1763377840235,-1000.0,0.000323,2]
[394203884,1763377840244,-162.64827273,0.00032328,2]
[394203886,1763377840253,-500.0,0.00032714,12]
[394203888,1763377840263,-500.0,0.00032714,12]
[394203890,1763377840271,-500.0,0.00032714,12]
[394203892,1763377840281,-520.72851829,0.00032714,12]
[394203894,1763377840291,-31024.9401095,0.00032715,3]
[394203896,1763377840300,-151.0,0.00032725,31]
[394203898,1763377840309,-151.0,0.00032725,31]
[394203900,1763377840318,-151.0,0.00032725,31]
[394203902,1763377840327,-293.636242,0.00032725,31]
[394203904,1763377840336,-293.636242,0.00032725,31]
[394203905,1763377840347,-293.636242,0.00032725,31]
[394203907,1763377840362,-187.782979,0.00032725,31]
[394203910,1763377840372,-293.636242,0.00032725,31]
[394203911,1763377840381,-187.782979,0.00032725,31]
[394203913,1763377840390,-187.782979,0.00032725,31]
[394203915,1763377840402,-187.782979,0.00032725,31]
[394203917,1763377840412,-151.0,0.00032725,31]
[394203919,1763377840420,-186.589165,0.00032725,31]
[394203921,1763377840431,-185.817072,0.00032725,31]
[394203923,1763377840440,-151.0,0.00032725,31]
[394203925,1763377840449,-151.0,0.00032725,31]
[394203927,1763377840459,-151.0,0.00032725,31]
[394203929,1763377840468,-151.0,0.00032725,31]
[394203931,1763377840477,-273.336416,0.00032725,31]
[394203933,1763377840486,-151.0,0.00032725,30]
[394203935,1763377840496,-151.0,0.00032725,31]
[394203937,1763377840505,-215.9294,0.00032725,31]
[394203939,1763377840514,-215.9294,0.00032725,31]
[394203941,1763377840523,-215.9294,0.00032725,31]
[394203943,1763377840532,-215.9294,0.00032725,31]
[394203962,1763377840763,-11032.36,0.00032746,2]
[394203965,1763377840780,-2000.0,0.00032849,120]
[394203967,1763377840790,-2000.0,0.00032849,120]
[394203968,1763377840799,-2000.0,0.00032849,120]
[394203970,1763377840809,-1000.0,0.0003297,2]
[394203973,1763377840818,-488.0,0.0003315,7]
[394203974,1763377840828,-444.7449456,0.00033233,30]
[394203976,1763377840837,-161.72543476,0.00033233,30]
[394203978,1763377840847,-527.15,0.00033263,2]
[394203980,1763377840856,-444.7449456,0.0003337,30]
[394203983,1763377840866,-161.72543476,0.00033397,30]
[394203985,1763377840875,-220.19,0.000334,30]
[394203986,1763377840884,-444.7449456,0.00033507,30]
[394203988,1763377840893,-161.72543476,0.00033534,30]
[394203991,1763377840903,-4187.72073445,0.00033615,2]
[394203992,1763377840913,-3473.38372707,0.00033615,2]
[394203995,1763377840923,-444.7449456,0.00033644,30]
[394203997,1763377840933,-161.72543476,0.00033671,30]
[394203999,1763377840942,-444.7449456,0.00033781,30]
[394204001,1763377840952,-161.72543476,0.00033836,30]
[394204003,1763377840961,-444.7449456,0.00033918,30]
[394204004,1763377840971,-488.0,0.00033972,8]
[394204007,1763377840980,-161.72543476,0.00033973,30]
[394204008,1763377840990,-151.0,0.00033985,4]
[394204011,1763377841001,-444.7449456,0.00034055,30]
[394204013,1763377841011,-644.52,0.00034084,2]
[394204015,1763377841020,-161.72543476,0.00034137,30]
[394204016,1763377841029,-154.32,0.00034151,30]
[394204018,1763377841039,-444.7449456,0.00034192,30]
[394204020,1763377841048,-204.25,0.0003423,5]
[394204022,1763377841057,-161.72543476,0.00034274,30]
[394204024,1763377841069,-444.7449456,0.00034301,30]
[394204026,1763377841078,-161.72543476,0.00034411,30]
[394204028,1763377841087,-444.7449456,0.00034438,30]
[394204030,1763377841097,-444.7449456,0.00034575,30]
[394204032,1763377841106,-161.72543476,0.00034575,30]
[394204034,1763377841116,-444.7449456,0.00034712,30]
[394204036,1763377841125,-161.72543476,0.00034712,30]
[394204038,1763377841135,-488.0,0.00034794,9]
[394204040,1763377841144,-150.0,0.00035,7]
[394204042,1763377841153,-150.0,0.00035,2]
[394204044,1763377841163,-4187.72073445,0.0003511,2]
[394204046,1763377841172,-3473.38372707,0.0003511,2]
[394204048,1763377841181,-488.0,0.00035616,10]
[394204050,1763377841191,-500.0,0.00035616,30]
[394204052,1763377841200,-500.0,0.0003589,30]
[394204054,1763377841210,-151.0,0.00035914,5]
[394204057,1763377841219,-1000.0,0.00036,2]
[394204059,1763377841229,-500.0,0.00036164,30]
[394204061,1763377841238,-1000.0,0.00036268,2]
[394204063,1763377841247,-488.0,0.00036438,11]
[394204065,1763377841256,-500.0,0.00036438,30]
[394204066,1763377841266,-31024.9401095,0.00036478,4]
[394204068,1763377841276,-290.335612,0.00036478,31]
[394204071,1763377841286,-151.0,0.00036478,31]
[394204073,1763377841296,-151.0,0.00036478,31]
[394204074,1763377841305,-151.0,0.00036478,31]
[394204076,1763377841314,-151.0,0.00036478,31]
[394204078,1763377841323,-151.0,0.00036478,31]
[394204080,1763377841333,-188.660059,0.00036478,31]
[394204082,1763377841341,-264.838396,0.00036478,31]
[394204084,1763377841355,-151.0,0.00036478,31]
[394204086,1763377841365,-151.0,0.00036478,31]
[394204088,1763377841374,-151.0,0.00036478,31]
[394204090,1763377841383,-151.0,0.00036478,31]
[394204092,1763377841393,-151.0,0.00036478,10]
[394204094,1763377841403,-151.0,0.00036478,31]
[394204096,1763377841412,-151.0,0.00036478,31]
[394204099,1763377841424,-151.0,0.00036478,31]
[394204101,1763377841433,-154.501776,0.00036478,31]
[394204102,1763377841442,-151.0,0.00036478,31]
[394204105,1763377841451,-151.0,0.00036478,31]
[394204106,1763377841461,-151.0,0.00036478,31]
[394204108,1763377841470,-151.0,0.00036478,31]
[394204110,1763377841479,-151.0,0.00036478,31]
[394204112,1763377841488,-500.0,0.00036488,30]
[394204115,1763377841498,-500.0,0.00036488,30]
[394204117,1763377841507,-500.0,0.00036488,30]
[394204119,1763377841516,-500.0,0.00036488,30]
[394204121,1763377841525,-500.0,0.00036488,30]
[394204123,1763377841536,-500.0,0.00036488,30]
[394204125,1763377841545,-500.0,0.00036488,30]
[394204127,1763377841554,-500.0,0.00036488,30]
[394204129,1763377841563,-154.32,0.00036582,60]
[394204131,1763377841573,-4187.72073445,0.00036605,2]
[394204133,1763377841582,-3473.38372707,0.00036605,2]
[394204135,1763377841591,-500.0,0.00036712,30]
[394204137,1763377841600,-500.0,0.00036986,30]
[394204139,1763377841610,-150.99,0.00037174,120]
[394204141,1763377841619,-181.6161309,0.000372,120]
[394204143,1763377841628,-181.61613088,0.000372,120]
[394204145,1763377841637,-181.61613088,0.000372,120]
[394204147,1763377841647,-181.61613088,0.000372,120]
[394204149,1763377841657,-226.20439651,0.0003726,12]
[394204151,1763377841666,-500.0,0.0003726,30]
[394204153,1763377841675,-304.22,0.0003743,2]
[394204155,1763377841684,-500.0,0.00037534,30]
[394204157,1763377841694,-222.2113773,0.00037613,2]
[394204159,1763377841703,-157.749136,0.00037805,14]
[394204161,1763377841712,-500.0,0.00037808,30]
[394204163,1763377841721,-151.0,0.00037843,6]
[394204165,1763377841731,-500.0,0.00037926,2]
[394204167,1763377841740,-5953.0,0.00037964,5]
[394204169,1763377841750,-270.619852,0.00037964,31]
[394204171,1763377841760,-151.0,0.00037964,31]
[394204173,1763377841770,-31024.9401095,0.0003799,4]
[394204175,1763377841779,-50000.0,0.00038,38]
[394204177,1763377841790,-235.632362,0.00038,31]
[394204179,1763377841799,-151.0,0.00038,15]
[394204181,1763377841808,-151.0,0.00038,31]
[394204183,1763377841817,-151.0,0.00038,31]
[394204185,1763377841826,-151.0,0.00038,31]
[394204187,1763377841836,-151.0,0.00038,31]